fUST/lending_fUST_20260623
["ID","MTS","AMOUNT","RATE_DAILY","PERIOD"]
[426252183,1782223838000,-500.0,0.00016438,2]
[426252174,1782223838000,-500.0,0.00016438,2]
[426252185,1782223838000,-500.0,0.00016712,2]
[426252188,1782223838000,-500.0,0.00016712,2]
[426252214,1782223838000,-2351.63121912,0.00016825,7]
[426252198,1782223838000,-500.0,0.00016712,2]
[426252383,1782223840000,-500.0,0.00016986,2]
[426252380,1782223840000,-500.0,0.00016712,2]
[426252385,1782223840000,-156.14716832,0.00016986,2]
[426252382,1782223840000,-65.46209464,0.00016825,7]
[426253164,1782223846000,-1471.6232275,0.00017947,7]
[426253156,1782223846000,-186.26478655,0.000179,2]
[426253158,1782223846000,-198.02623017,0.000179,2]
[426253160,1782223846000,-1290.90429566,0.00017947,7]
[426253138,1782223846000,-500.0,0.00017534,2]
[426253154,1782223846000,-178.3606464,0.000179,2]
[426253162,1782223846000,-880.00799165,0.00017947,7]
[426253168,1782223846000,-500.0,0.00018075,2]
[426253170,1782223846000,-264.26481279,0.00018075,2]
[426253166,1782223846000,-625.90957276,0.00018075,2]
[426253173,1782223846000,-500.0,0.00018082,2]
[426253175,1782223846000,-722.52,0.00018082,2]
[426253178,1782223846000,-215.82430434,0.00018328,2]
[426253180,1782223846000,-500.0,0.00018356,2]
[426253182,1782223846000,-722.52,0.00018356,2]
[426253142,1782223846000,-194.2462599,0.00017779,2]
[426253176,1782223846000,-212.598381,0.00018176,2]
[426253152,1782223846000,-158.69506263,0.000179,2]
[426253117,1782223846000,-722.52,0.00016986,2]
[426253141,1782223846000,-722.52,0.00017534,2]
[426253111,1782223846000,-343.85283168,0.00016986,2]
[426253184,1782223846000,-100193.96716978,0.00018444,3]
[426253113,1782223846000,-500.0,0.00016986,2]
[426253115,1782223846000,-500.0,0.00016986,2]
[426253121,1782223846000,-965.8172057,0.00017049,2]
[426253127,1782223846000,-500.0,0.0001726,2]
[426253125,1782223846000,-500.0,0.0001726,2]
[426253136,1782223846000,-214.86583613,0.00017534,2]
[426253119,1782223846000,-160.0,0.00017,7]
[426253131,1782223846000,-1290.90429564,0.00017306,7]
[426253129,1782223846000,-722.52,0.0001726,2]
[426253133,1782223846000,-2351.63121912,0.00017306,7]
[426253145,1782223846000,-500.0,0.00017808,2]
[426253147,1782223846000,-587.6900736,0.00017808,2]
[426253150,1782223846000,-134.8299264,0.00017808,2]
[426253135,1782223846000,-212.598381,0.00017441,2]
[426253123,1782223846000,-707.51265643,0.00017167,7]
[426253186,1782223846000,-417.15472785,0.00018444,3]
[426253188,1782223846000,-160.0,0.00018444,3]
[426253193,1782223846000,-1419.0,0.00018669,2]
[426253236,1782223846000,-500.0,0.00018793,2]
[426253234,1782223846000,-185.50781895,0.00018793,2]
[426253232,1782223846000,-151.5,0.00018793,2]
[426253246,1782223846000,-500.0,0.00018793,2]
[426253239,1782223846000,-500.0,0.00018793,2]
[426253243,1782223846000,-151.5,0.00018793,2]
[426253241,1782223846000,-248.96083718,0.00018793,2]
[426253245,1782223846000,-151.5,0.00018793,2]
[426253248,1782223846000,-500.0,0.00018793,2]
[426253250,1782223846000,-335.05943751,0.00018793,2]
[426253252,1782223846000,-500.0,0.00018799,2]
[426253199,1782223846000,-445.0,0.00018669,2]
[426253258,1782223846000,-216.17834057,0.00018832,2]
[426253256,1782223846000,-151.0,0.000188,2]
[426253261,1782223846000,-177.58357862,0.00018832,2]
[426253259,1782223846000,-197.58078057,0.00018832,2]
[426253263,1782223846000,-500.0,0.00018904,2]
[426253230,1782223846000,-151.5,0.00018793,2]
[426253228,1782223846000,-468.46604623,0.00018793,2]
[426253254,1782223846000,-278.8,0.00018799,2]
[426253221,1782223846000,-500.0,0.00018793,2]
[426253226,1782223846000,-500.0,0.00018793,2]
[426253190,1782223846000,-500.0,0.0001863,2]
[426253195,1782223846000,-1047.913,0.00018669,2]
[426253201,1782223846000,-330.72639425,0.00018715,2]
[426253197,1782223846000,-1841.0,0.00018669,2]
[426253206,1782223846000,-500.0,0.00018793,2]
[426253208,1782223846000,-367.30948238,0.00018793,2]
[426253204,1782223846000,-500.0,0.00018793,2]
[426253191,1782223846000,-722.52,0.0001863,2]
[426253223,1782223846000,-500.0,0.00018793,2]
[426253203,1782223846000,-500.0,0.00018793,2]
[426253224,1782223846000,-151.5,0.00018793,2]
[426253215,1782223846000,-500.0,0.00018793,2]
[426253217,1782223846000,-500.0,0.00018793,2]
[426253219,1782223846000,-319.18806283,0.00018793,2]
[426253211,1782223846000,-500.0,0.00018793,2]
[426253213,1782223846000,-500.0,0.00018793,2]
[426253280,1782223847000,-1010.0,0.000192,2]
[426253295,1782223847000,-245.075694,0.00019532,2]
[426253299,1782223847000,-417.15472785,0.000196,3]
[426253305,1782223847000,-432.35668113,0.00019616,2]
[426253301,1782223847000,-160.0,0.000196,3]
[426253317,1782223847000,-154.1770076,0.00019616,2]
[426253321,1782223847000,-227.83727991,0.00019616,2]
[426253319,1782223847000,-218.64164417,0.00019616,2]
[426253307,1782223847000,-395.16156114,0.00019616,2]
[426253297,1782223847000,-300.0,0.00019589,3]
[426253303,1782223847000,-178.73719943,0.00019616,2]
[426253278,1782223847000,-722.52,0.00019178,2]
[426253274,1782223847000,-349.29362456,0.00019172,2]
[426253276,1782223847000,-500.0,0.00019178,2]
[426253288,1782223847000,-722.52,0.00019452,2]
[426253289,1782223847000,-213.92748,0.00019495,2]
[426253286,1782223847000,-500.0,0.00019452,2]
[426253291,1782223847000,-306.644803,0.00019495,2]
[426253293,1782223847000,-202.88057568,0.000195,2]
[426253284,1782223847000,-160.0,0.00019416,2]
[426253272,1782223847000,-500.0,0.00019073,2]
[426253270,1782223847000,-160.0,0.00019,3]
[426253265,1782223847000,-722.52,0.00018904,2]
[426253269,1782223847000,-417.15472785,0.00019,3]
[426253267,1782223847000,-212.598381,0.0001891,2]
[426253309,1782223847000,-202.54265091,0.00019616,2]
[426253282,1782223847000,-500.0,0.00019347,2]
[426253313,1782223847000,-355.16715724,0.00019616,2]
[426253326,1782223847000,-500.0,0.00019621,2]
[426253315,1782223847000,-228.80015961,0.00019616,2]
[426253311,1782223847000,-233.48260972,0.00019616,2]
[426253409,1782223847000,-1902.04860122,0.0002,2]
[426253389,1782223847000,-760.76031702,0.0002,2]
[426253387,1782223847000,-572.22010432,0.0002,2]
[426253385,1782223847000,-819.30227355,0.0002,2]
[426253382,1782223847000,-7041.03391632,0.0002,2]
[426253380,1782223847000,-396.54944253,0.0002,2]
[426253363,1782223847000,-761.83246908,0.00016816,2]
[426253365,1782223847000,-600.37145632,0.0002,2]
[426253357,1782223847000,-500.0,0.00019895,2]
[426253360,1782223847000,-2769.49731269,0.0002,2]
[426253359,1782223847000,-58139.37574596,0.0002,2]
[426253355,1782223847000,-377.59504897,0.00019842,2]
[426253358,1782223847000,-202.88057568,0.000199,2]
[426253351,1782223847000,-160.0,0.00019799,2]
[426253324,1782223847000,-223.52491105,0.00019616,2]
[426253328,1782223847000,-233.57528077,0.00019637,2]
[426253330,1782223847000,-212.598381,0.00019644,2]
[426253336,1782223847000,-310.15952462,0.00019684,2]
[426253353,1782223847000,-1010.0,0.000198,4]
[426253342,1782223847000,-2157.56843484,0.00019704,2]
[426253332,1782223847000,-173.68933379,0.00019684,2]
[426253338,1782223847000,-446.18308574,0.00019684,2]
[426253340,1782223847000,-202.88057568,0.000197,2]
[426253345,1782223847000,-1014.21422009,0.00019704,2]
[426253347,1782223847000,-500.0,0.00019726,2]
[426253349,1782223847000,-722.52,0.00019726,2]
[426253334,1782223847000,-198.50209576,0.00019684,2]
[426260527,1782224818000,514.93746891,8.604e-05,2]
[426260528,1782224827000,5000.0,8.604e-05,2]
[426260579,1782225008000,4858.40778182,8.604e-05,2]
[426260608,1782225034000,-434.18245746,9.415e-05,7]
[426260609,1782225034000,-434.18245746,9.603e-05,7]
[426260610,1782225034000,-434.18245746,9.886e-05,7]
[426260613,1782225034000,-352.22141837,0.00010545,7]
[426260612,1782225034000,-434.18245746,0.00010168,7]
[426260611,1782225034000,-342.86290254,0.0001,2]
[426260687,1782225051000,-500.0,0.00017808,2]
[426260692,1782225051000,-235.1345951,0.00018635,2]
[426260689,1782225051000,-500.0,0.00018082,2]
[426260690,1782225051000,-500.0,0.00018356,2]
[426260688,1782225051000,-198.747407,0.00017926,2]
[426260694,1782225051000,-168.46361291,0.00018838,2]
[426260695,1782225051000,-500.0,0.00018904,2]
[426260696,1782225051000,-312.96156809,0.00018964,7]
[426260693,1782225051000,-151.3248384,0.00018838,2]
[426260691,1782225051000,-500.0,0.0001863,2]
[426260701,1782225051000,-500.0,0.00019452,2]
[426260707,1782225051000,-400.9824356,0.00019598,2]
[426260698,1782225051000,-159.28368088,0.00019342,2]
[426260697,1782225051000,-500.0,0.00019178,2]
[426260685,1782225051000,-500.0,0.0001726,2]
[426260684,1782225051000,-199.0011,0.0001726,2]
[426260671,1782225051000,-81.9610391,0.00010545,7]
[426260672,1782225051000,-778.4415515,0.00015803,2]
[426260675,1782225051000,-6924.6014751,0.00015926,2]
[426260677,1782225051000,-500.0,0.00016438,2]
[426260678,1782225051000,-500.0,0.00016438,2]
[426260674,1782225051000,-4919.3065749,0.00015871,2]
[426260705,1782225051000,-430.35986315,0.00019598,2]
[426260673,1782225051000,-337.8745744,0.00015824,2]
[426260682,1782225051000,-500.0,0.00016986,2]
[426260680,1782225051000,-500.0,0.00016712,2]
[426260679,1782225051000,-197.26958726,0.00016438,2]
[426260686,1782225051000,-500.0,0.00017534,2]
[426260683,1782225051000,-500.0,0.00016986,2]
[426260681,1782225051000,-500.0,0.00016712,2]
[426260676,1782225051000,-500.0,0.00016438,2]
[426260708,1782225051000,-500.0,0.00019598,2]
[426260706,1782225051000,-500.0,0.00019598,2]
[426260704,1782225051000,-500.0,0.00019598,2]
[426260736,1782225051000,-312.80897139,0.000197,2]
[426260702,1782225051000,-2640.43336127,0.00019516,2]
[426260733,1782225051000,-21554.37464763,0.000197,2]
[426260734,1782225051000,-1780.09051058,0.000197,2]
[426260728,1782225051000,-186.27075921,0.00019622,2]
[426260726,1782225051000,-302.64967679,0.00019622,2]
[426260732,1782225051000,-23682.59818261,0.000197,2]
[426260730,1782225051000,-8646.50969173,0.000197,2]
[426260723,1782225051000,-207.18084172,0.00019616,2]
[426260727,1782225051000,-336.92722581,0.00019622,2]
[426260729,1782225051000,-168.78554243,0.00019622,2]
[426260722,1782225051000,-182.20137014,0.00019616,2]
[426260725,1782225051000,-194.56884143,0.00019622,2]
[426260731,1782225051000,-7221.80579336,0.000197,2]
[426260724,1782225051000,-189.86439992,0.00019616,2]
[426260735,1782225051000,-5419.47280461,0.000197,2]
[426260716,1782225051000,-333.11544343,0.00019616,2]
[426260717,1782225051000,-592.20523276,0.00019616,2]
[426260699,1782225051000,-202.88057569,0.000194,2]
[426260700,1782225051000,-160.0,0.00019439,2]
[426260709,1782225051000,-500.0,0.00019599,2]
[426260710,1782225051000,-217.36559597,0.00019599,2]
[426260718,1782225051000,-925.32067618,0.00019616,2]
[426260719,1782225051000,-200.73727044,0.00019616,2]
[426260703,1782225051000,-500.0,0.00019598,2]
[426260715,1782225051000,-185.06413524,0.00019616,2]
[426260720,1782225051000,-194.64606731,0.00019616,2]
[426260721,1782225051000,-190.66679967,0.00019616,2]
[426260714,1782225051000,-254.882,0.000196,2]
[426260712,1782225051000,-549.6434173,0.00019599,2]
[426260711,1782225051000,-209.90953832,0.00019599,2]
[426260713,1782225051000,-202.88057569,0.000196,2]
[426260737,1782225087000,-1719.5801644,0.00016274,2]
[426260738,1782225103000,-398.92172553,0.00016274,2]
[426260987,1782226232000,-1000.0,0.00016438,2]
[426260986,1782226232000,-500.0,0.00016438,2]
[426260988,1782226232000,-500.0,0.00016438,2]
[426260989,1782226232000,-500.0,0.00016438,2]
[426260990,1782226232000,-152.74896461,0.00016438,2]
[426260997,1782226232000,-500.0,0.00016438,2]
[426260995,1782226232000,-500.0,0.00016438,2]
[426260992,1782226232000,-500.0,0.00016438,2]
[426260991,1782226232000,-500.0,0.00016438,2]
[426260977,1782226232000,-1302.39794048,0.00016186,2]
[426260996,1782226232000,-500.0,0.00016438,2]
[426260983,1782226232000,-500.0,0.00016438,2]
[426260974,1782226232000,-1982.9458685,0.00015431,2]
[426260978,1782226232000,-175.22397643,0.00016274,2]
[426260985,1782226232000,-500.0,0.00016438,2]
[426260979,1782226232000,-503.30440161,0.00016437,2]
[426260975,1782226232000,-500.0,0.00015926,2]
[426260976,1782226232000,-500.0,0.00015926,2]
[426260982,1782226232000,-500.0,0.00016438,2]
[426260980,1782226232000,-500.0,0.00016437,2]
[426260993,1782226232000,-500.0,0.00016438,2]
[426260973,1782226232000,-5333.89556282,0.00015334,2]
[426260970,1782226232000,-1922.18615608,0.00015334,2]
[426260968,1782226232000,-398.92172553,0.0001518,2]
[426260981,1782226232000,-500.0,0.00016438,2]
[426260994,1782226232000,-500.0,0.00016438,2]
[426261021,1782226232000,-500.0,0.00016438,2]
[426260999,1782226232000,-500.0,0.00016438,2]
[426260998,1782226232000,-613.84626154,0.00016438,2]
[426261024,1782226232000,-391.35719523,0.00016438,2]
[426261023,1782226232000,-108.64280477,0.00016438,2]
[426261022,1782226232000,-503.62266987,0.00016438,2]
[426261019,1782226232000,-500.0,0.00016438,2]
[426261020,1782226232000,-500.0,0.00016438,2]
[426261017,1782226232000,-500.0,0.00016438,2]
[426261015,1782226232000,-500.0,0.00016438,2]
[426261018,1782226232000,-500.0,0.00016438,2]
[426261016,1782226232000,-500.0,0.00016438,2]
[426261014,1782226232000,-500.0,0.00016438,2]
[426261013,1782226232000,-500.0,0.00016438,2]
[426261025,1782226232000,-433.37010727,0.00016438,2]
[426261012,1782226232000,-500.0,0.00016438,2]
[426261000,1782226232000,-500.0,0.00016438,2]
[426261001,1782226232000,-261.13664586,0.00016438,2]
[426261004,1782226232000,-500.0,0.00016438,2]
[426261011,1782226232000,-500.0,0.00016438,2]
[426261005,1782226232000,-500.0,0.00016438,2]
[426261003,1782226232000,-500.0,0.00016438,2]
[426261009,1782226232000,-500.0,0.00016438,2]
[426261008,1782226232000,-500.0,0.00016438,2]
[426261007,1782226232000,-500.0,0.00016438,2]
[426261006,1782226232000,-500.0,0.00016438,2]
[426261010,1782226232000,-500.0,0.00016438,2]
[426261002,1782226232000,-238.86335414,0.00016438,2]
[426261058,1782226238000,-500.0,0.00016438,2]
[426261057,1782226238000,-500.0,0.00016438,2]
[426261059,1782226238000,-500.0,0.00016438,2]
[426261056,1782226238000,-500.0,0.00016438,2]
[426261075,1782226238000,-229.56525872,0.00016438,2]
[426261061,1782226238000,-500.0,0.00016438,2]
[426261060,1782226238000,-500.0,0.00016438,2]
[426261063,1782226238000,-500.0,0.00016438,2]
[426261055,1782226238000,-500.0,0.00016438,2]
[426261062,1782226238000,-1000.0,0.00016438,2]
[426261054,1782226238000,-500.0,0.00016438,2]
[426261046,1782226238000,-500.0,0.00016438,2]
[426261053,1782226238000,-500.0,0.00016438,2]
[426261052,1782226238000,-500.0,0.00016438,2]
[426261049,1782226238000,-500.0,0.00016438,2]
[426261050,1782226238000,-500.0,0.00016438,2]
[426261048,1782226238000,-500.0,0.00016438,2]
[426261045,1782226238000,-500.0,0.00016438,2]
[426261043,1782226238000,-500.0,0.00016438,2]
[426261044,1782226238000,-500.0,0.00016438,2]
[426261041,1782226238000,-66.62989273,0.00016438,2]
[426261042,1782226238000,-500.0,0.00016438,2]
[426261076,1782226238000,-500.0,0.00016438,2]
[426261051,1782226238000,-500.0,0.00016438,2]
[426261064,1782226238000,-500.0,0.00016438,2]
[426261047,1782226238000,-500.0,0.00016438,2]
[426261066,1782226238000,-500.0,0.00016438,2]
[426261065,1782226238000,-500.0,0.00016438,2]
[426261094,1782226238000,-500.0,0.00016438,2]
[426261095,1782226238000,-500.0,0.00016438,2]
[426261092,1782226238000,-500.0,0.00016438,2]
[426261093,1782226238000,-500.0,0.00016438,2]
[426261091,1782226238000,-500.0,0.00016438,2]
[426261089,1782226238000,-500.0,0.00016438,2]
[426261090,1782226238000,-500.0,0.00016438,2]
[426261081,1782226238000,-500.0,0.00016438,2]
[426261083,1782226238000,-203.4484675,0.00016438,2]
[426261087,1782226238000,-500.0,0.00016438,2]
[426261086,1782226238000,-500.0,0.00016438,2]
[426261085,1782226238000,-500.0,0.00016438,2]
[426261084,1782226238000,-500.0,0.00016438,2]
[426261088,1782226238000,-500.0,0.00016438,2]
[426261067,1782226238000,-500.0,0.00016438,2]
[426261069,1782226238000,-500.0,0.00016438,2]
[426261073,1782226238000,-500.0,0.00016438,2]
[426261080,1782226238000,-500.0,0.00016438,2]
[426261071,1782226238000,-500.0,0.00016438,2]
[426261068,1782226238000,-500.0,0.00016438,2]
[426261077,1782226238000,-500.0,0.00016438,2]
[426261078,1782226238000,-500.0,0.00016438,2]
[426261082,1782226238000,-500.0,0.00016438,2]
[426261079,1782226238000,-500.0,0.00016438,2]
[426261135,1782226239000,-500.0,0.00016712,2]
[426261136,1782226239000,-500.0,0.00016712,2]
[426261139,1782226239000,-500.0,0.00016712,2]
[426261133,1782226239000,-500.0,0.00016712,2]
[426261134,1782226239000,-500.0,0.00016712,2]
[426261127,1782226239000,-300.0,0.00016712,2]
[426261131,1782226239000,-500.0,0.00016712,2]
[426261129,1782226239000,-534.27101981,0.00016712,2]
[426261130,1782226239000,-500.0,0.00016712,2]
[426261137,1782226239000,-500.0,0.00016712,2]
[426261126,1782226239000,-500.0,0.00016712,2]
[426261132,1782226239000,-599.0175644,0.00016712,2]
[426261140,1782226239000,-500.0,0.00016712,2]
[426261151,1782226239000,-500.0,0.00016712,2]
[426261138,1782226239000,-500.0,0.00016712,2]
[426261143,1782226239000,-500.0,0.00016712,2]
[426261142,1782226239000,-530.66536063,0.00016712,2]
[426261144,1782226239000,-500.0,0.00016712,2]
[426261146,1782226239000,-500.0,0.00016712,2]
[426261145,1782226239000,-500.0,0.00016712,2]
[426261147,1782226239000,-212.35189791,0.00016712,2]
[426261152,1782226239000,-500.0,0.00016712,2]
[426261150,1782226239000,-368.40362075,0.00016712,2]
[426261148,1782226239000,-500.0,0.00016712,2]
[426261125,1782226239000,-500.0,0.00016712,2]
[426261153,1782226239000,-500.0,0.00016712,2]
[426261149,1782226239000,-500.0,0.00016712,2]
[426261141,1782226239000,-500.0,0.00016712,2]
[426261128,1782226239000,-500.0,0.00016712,2]
[426261112,1782226239000,-500.0,0.00016712,2]
[426261122,1782226239000,-500.0,0.00016712,2]
[426261155,1782226239000,-500.0,0.00016712,2]
[426261096,1782226239000,-500.0,0.00016438,2]
[426261099,1782226239000,-500.0,0.00016438,2]
[426261103,1782226239000,-500.0,0.00016711,2]
[426261100,1782226239000,-500.0,0.00016438,2]
[426261098,1782226239000,-500.0,0.00016438,2]
[426261097,1782226239000,-500.0,0.00016438,2]
[426261102,1782226239000,-500.0,0.00016711,2]
[426261101,1782226239000,-500.0,0.00016438,2]
[426261104,1782226239000,-500.0,0.00016711,2]
[426261106,1782226239000,-500.0,0.00016711,2]
[426261105,1782226239000,-500.0,0.00016711,2]
[426261107,1782226239000,-500.0,0.00016711,2]
[426261109,1782226239000,-622.16669547,0.00016711,2]
[426261113,1782226239000,-500.0,0.00016712,2]
[426261108,1782226239000,-500.0,0.00016711,2]
[426261110,1782226239000,-534.98536896,0.00016711,2]
[426261111,1782226239000,-500.0,0.00016712,2]
[426261114,1782226239000,-500.0,0.00016712,2]
[426261115,1782226239000,-500.0,0.00016712,2]
[426261116,1782226239000,-1000.0,0.00016712,2]
[426261118,1782226239000,-500.0,0.00016712,2]
[426261117,1782226239000,-500.0,0.00016712,2]
[426261119,1782226239000,-500.0,0.00016712,2]
[426261120,1782226239000,-500.0,0.00016712,2]
[426261121,1782226239000,-500.0,0.00016712,2]
[426261124,1782226239000,-500.0,0.00016712,2]
[426261123,1782226239000,-500.0,0.00016712,2]
[426261157,1782226239000,-500.0,0.00016712,2]
[426261166,1782226239000,-500.0,0.00016712,2]
[426261154,1782226239000,-500.0,0.00016712,2]
[426261190,1782226239000,-500.0,0.00016712,2]
[426261192,1782226239000,-500.0,0.00016712,2]
[426261189,1782226239000,-500.0,0.00016712,2]
[426261191,1782226239000,-500.0,0.00016712,2]
[426261193,1782226239000,-221.65,0.00016712,2]
[426261194,1782226239000,-500.0,0.00016712,2]
[426261196,1782226239000,-500.0,0.00016712,2]
[426261195,1782226239000,-500.0,0.00016712,2]
[426261197,1782226239000,-500.0,0.00016712,2]
[426261199,1782226239000,-164.89,0.00016712,2]
[426261198,1782226239000,-500.0,0.00016712,2]
[426261200,1782226239000,-600.0,0.00016766,2]
[426261201,1782226239000,-500.0,0.00016985,2]
[426261203,1782226239000,-500.0,0.00016985,2]
[426261204,1782226239000,-500.0,0.00016985,2]
[426261206,1782226239000,-500.0,0.00016985,2]
[426261205,1782226239000,-500.0,0.00016985,2]
[426261208,1782226239000,-500.0,0.00016986,2]
[426261209,1782226239000,-509.50216706,0.00016986,2]
[426261207,1782226239000,-500.0,0.00016985,2]
[426261211,1782226239000,-500.0,0.00016986,2]
[426261212,1782226239000,-500.0,0.00016986,2]
[426261210,1782226239000,-500.0,0.00016986,2]
[426261214,1782226239000,-500.0,0.00016986,2]
[426261215,1782226239000,-500.0,0.00016986,2]
[426261213,1782226239000,-500.0,0.00016986,2]
[426261156,1782226239000,-500.0,0.00016712,2]
[426261187,1782226239000,-500.0,0.00016712,2]
[426261188,1782226239000,-500.0,0.00016712,2]
[426261202,1782226239000,-500.0,0.00016985,2]
[426261186,1782226239000,-500.0,0.00016712,2]
[426261159,1782226239000,-500.0,0.00016712,2]
[426261185,1782226239000,-500.0,0.00016712,2]
[426261158,1782226239000,-500.0,0.00016712,2]
[426261162,1782226239000,-500.0,0.00016712,2]
[426261161,1782226239000,-500.0,0.00016712,2]
[426261160,1782226239000,-500.0,0.00016712,2]
[426261163,1782226239000,-500.0,0.00016712,2]
[426261216,1782226239000,-500.0,0.00016986,2]
[426261164,1782226239000,-500.0,0.00016712,2]
[426261168,1782226239000,-1000.0,0.00016712,2]
[426261167,1782226239000,-500.0,0.00016712,2]
[426261169,1782226239000,-500.0,0.00016712,2]
[426261170,1782226239000,-544.0,0.00016712,2]
[426261176,1782226239000,-500.0,0.00016712,2]
[426261165,1782226239000,-500.0,0.00016712,2]
[426261183,1782226239000,-500.0,0.00016712,2]
[426261180,1782226239000,-500.0,0.00016712,2]
[426261173,1782226239000,-500.0,0.00016712,2]
[426261182,1782226239000,-500.0,0.00016712,2]
[426261184,1782226239000,-500.0,0.00016712,2]
[426261181,1782226239000,-500.0,0.00016712,2]
[426261177,1782226239000,-500.0,0.00016712,2]
[426261179,1782226239000,-500.0,0.00016712,2]
[426261174,1782226239000,-502.7425977,0.00016712,2]
[426261175,1782226239000,-500.0,0.00016712,2]
[426261172,1782226239000,-500.0,0.00016712,2]
[426261171,1782226239000,-500.0,0.00016712,2]
[426261178,1782226239000,-500.0,0.00016712,2]
[426261258,1782226240000,-500.0,0.0001726,2]
[426261259,1782226240000,-500.0,0.00017533,2]
[426261261,1782226240000,-500.0,0.00017534,2]
[426261252,1782226240000,-500.0,0.0001726,2]
[426261254,1782226240000,-500.0,0.0001726,2]
[426261250,1782226240000,-500.0,0.00017259,2]
[426261255,1782226240000,-500.0,0.0001726,2]
[426261253,1782226240000,-500.0,0.0001726,2]
[426261251,1782226240000,-500.0,0.0001726,2]
[426261249,1782226240000,-184.182419,0.00017121,2]
[426261260,1782226240000,-500.0,0.00017534,2]
[426261257,1782226240000,-500.0,0.0001726,2]
[426261256,1782226240000,-181.95049855,0.0001726,2]
[426261274,1782226240000,-151.5,0.00019068,2]
[426261262,1782226240000,-500.0,0.00017807,2]
[426261264,1782226240000,-582.75625824,0.00017808,2]
[426261266,1782226240000,-184.182419,0.00018322,2]
[426261265,1782226240000,-500.0,0.00018081,2]
[426261269,1782226240000,-720.0,0.00018442,2]
[426261268,1782226240000,-286.707287,0.00018383,2]
[426261267,1782226240000,-500.0,0.00018355,2]
[426261273,1782226240000,-234.891,0.00019051,2]
[426261270,1782226240000,-500.0,0.00018629,2]
[426261271,1782226240000,-166.9950029,0.00018834,2]
[426261272,1782226240000,-500.0,0.00018903,2]
[426261275,1782226240000,-151.5,0.00019068,2]
[426261245,1782226240000,-500.0,0.00016986,2]
[426261263,1782226240000,-500.210044,0.00017808,2]
[426261248,1782226240000,-500.0,0.00016986,2]
[426261223,1782226240000,-500.0,0.00016986,2]
[426261247,1782226240000,-520.36357014,0.00016986,2]
[426261277,1782226240000,-500.0,0.00019068,2]
[426261217,1782226240000,-500.0,0.00016986,2]
[426261222,1782226240000,-500.0,0.00016986,2]
[426261218,1782226240000,-500.0,0.00016986,2]
[426261220,1782226240000,-199.18838719,0.00016986,2]
[426261221,1782226240000,-516.0,0.00016986,2]
[426261219,1782226240000,-500.0,0.00016986,2]
[426261224,1782226240000,-420.10093093,0.00016986,2]
[426261226,1782226240000,-500.0,0.00016986,2]
[426261225,1782226240000,-500.0,0.00016986,2]
[426261227,1782226240000,-500.0,0.00016986,2]
[426261229,1782226240000,-500.0,0.00016986,2]
[426261228,1782226240000,-500.0,0.00016986,2]
[426261244,1782226240000,-500.0,0.00016986,2]
[426261234,1782226240000,-344.22,0.00016986,2]
[426261231,1782226240000,-500.0,0.00016986,2]
[426261236,1782226240000,-500.0,0.00016986,2]
[426261235,1782226240000,-500.0,0.00016986,2]
[426261233,1782226240000,-500.0,0.00016986,2]